bitfinex/quotes_BTCUSD_20250410
["timestamp","ask_amount","ask_price","bid_price","bid_amount"]
[1744308933733,0.25251,79205.0,79201.0,0.252521]
[1744308934074,0.002,79279.0,79197.0,0.252533]
[1744308934075,0.252449,79224.0,79206.0,0.265131]
[1744308934254,0.4262674,79233.0,79206.0,0.265131]
[1744308934255,0.252459,79221.0,79206.0,0.265131]
[1744308934400,0.254465,79219.0,79206.0,0.265131]
[1744308934596,0.012624,79212.0,79200.0,0.265149]
[1744308934952,0.252494,79210.0,79203.0,0.012625]
[1744308935108,0.252494,79210.0,79204.0,0.25251]
[1744308935312,0.252497,79209.0,79205.0,0.252507]
[1744308935787,0.012625,79203.0,79197.0,0.352626]
[1744308936004,0.252517,79203.0,79200.0,0.34]
[1744308936381,0.25252,79202.0,79200.0,0.34]
[1744308936587,0.252534,79198.0,79195.0,0.34]
[1744308936790,0.252534,79198.0,79194.0,0.26517]
[1744308936993,0.252519,79204.0,79178.0,0.012629]
[1744308936994,0.012628,79188.0,79178.0,0.012629]
[1744308937208,0.012627,79191.0,79186.0,0.012628]
[1744308937408,0.14103752,79206.0,79184.0,0.012628]
[1744308937409,0.012627,79195.0,79184.0,0.012628]
[1744308937641,0.252529,79199.0,79184.0,0.012628]
[1744308937642,0.012626,79198.0,79190.0,0.252556]
[1744308937793,0.14103752,79206.0,79182.0,0.34]
[1744308937794,0.252517,79203.0,79199.0,0.012626]
[1744308938145,0.252517,79203.0,79198.0,0.012626]
[1744308938354,0.012625,79204.0,79198.0,0.265157]
[1744308938502,0.252519,79202.0,79198.0,0.012626]
[1744308938839,0.252519,79202.0,79198.0,0.265156]
[1744308939142,0.265141,79203.0,79196.0,0.252538]
[1744308939322,0.25252,79202.0,79198.0,0.01]
[1744308939540,0.265154,79199.0,79198.0,0.01]
[1744308940160,0.5330991,79199.0,79198.0,0.01]
[1744308940318,0.54763995,79199.0,79198.0,0.01]
[1744308940522,0.55706367,79199.0,79198.0,0.01]
[1744308941766,0.40619152,79199.0,79198.0,0.01]
[1744308942860,0.14103752,79199.0,79198.0,0.01]
[1744308943065,0.14103752,79221.0,79199.0,0.34]
[1744308943265,0.0477,79239.0,79199.0,0.34]
[1744308943266,0.2629574,79233.0,79218.0,0.26509]
[1744308943449,0.2629574,79233.0,79213.0,0.252481]
[1744308943450,0.012622,79223.0,79213.0,0.252481]
[1744308943654,0.00212626,79219.0,79212.0,0.352624]
[1744308943872,0.00212626,79219.0,79217.0,0.012623]
[1744308944105,0.00212626,79219.0,79214.0,0.012624]
[1744308944106,0.00212626,79219.0,79216.0,0.25247]
[1744308944336,0.00212626,79219.0,79212.0,0.012624]
[1744308944337,0.012625,79203.0,79198.0,0.01]
[1744308944543,0.252509,79206.0,79203.0,0.34]
[1744308944758,0.265134,79206.0,79199.0,0.012626]
[1744308944966,0.252522,79201.0,79198.0,0.35]
[1744308945100,0.012625,79202.0,79198.0,0.01]
[1744308945300,0.012625,79204.0,79198.0,0.022626]
[1744308945503,0.252525,79200.0,79198.0,0.01]
[1744308945718,0.13953358,79199.0,79198.0,0.01]
[1744308946023,0.12690758,79199.0,79198.0,0.01]
[1744308946388,0.252526,79200.0,79198.0,0.01]
[1744308946584,0.012626,79199.0,79198.0,0.01]
[1744308947126,0.265152,79200.0,79198.0,0.01]
[1744308947362,0.265151,79201.0,79198.0,0.01]
[1744308947363,0.012625,79207.0,79198.0,0.01]
[1744308947587,0.252508,79206.0,79201.0,0.25252]
[1744308947720,0.252522,79201.0,79198.0,0.02]
[1744308947925,0.265154,79199.0,79198.0,0.02]
[1744308948524,0.252513,79204.0,79198.0,0.02]
[1744308948525,0.01156793,79219.0,79198.0,0.032626]
[1744308948871,0.00212626,79219.0,79218.0,0.26509]
[1744308949004,0.00212626,79219.0,79211.0,0.012624]
[1744308949213,0.00212626,79219.0,79214.0,0.25248]
[1744308949413,0.00212626,79219.0,79218.0,0.252467]
[1744308949613,0.00212626,79219.0,79217.0,0.25247]
[1744308949812,0.00212626,79219.0,79218.0,0.012623]
[1744308950471,0.00212626,79219.0,79218.0,0.352623]
[1744308950807,0.00212626,79219.0,79218.0,0.47953058]
[1744308951431,2.6e-07,79219.0,79218.0,0.67249058]
[1744308951767,2.6e-07,79219.0,79218.0,0.68448091]
[1744308953330,0.0003366,79224.0,79223.0,0.605073]
[1744308953331,8.6e-07,79224.0,79223.0,0.605073]
[1744308953482,8.6e-07,79224.0,79223.0,0.73198058]
[1744308953674,0.0003364,79233.0,79228.0,0.552621]
[1744308953675,8e-07,79233.0,79228.0,0.552621]
[1744308953878,8e-07,79233.0,79232.0,0.605044]
[1744308954112,8e-07,79233.0,79232.0,0.83195158]
[1744308954727,8e-07,79233.0,79232.0,0.88195158]
[1744308954873,8e-07,79233.0,79232.0,0.89159874]
[1744308955074,0.0003364,79250.0,79242.0,0.34]
[1744308955276,0.0003364,79250.0,79248.0,0.60499]
[1744308955277,0.00212663,79249.0,79248.0,0.60499]
[1744308955555,0.00212663,79249.0,79248.0,0.73189758]
[1744308956122,0.00212663,79249.0,79248.0,0.60499]
[1744308957053,0.00205657,79249.0,79248.0,0.60499]
[1744308957916,0.00205657,79249.0,79243.0,0.252388]
[1744308958121,0.00205657,79249.0,79248.0,0.012618]
[1744308958332,0.00205657,79249.0,79248.0,0.01524163]
[1744308958539,0.00205657,79249.0,79248.0,0.012718]
[1744308959088,0.00205657,79249.0,79248.0,0.0152414]
[1744308959262,0.00205657,79249.0,79248.0,0.012718]
[1744308960478,0.00205657,79249.0,79248.0,0.022718]
[1744308961637,0.00205657,79249.0,79248.0,0.49214909]
[1744308961871,0.00205657,79249.0,79248.0,0.58962558]
[1744308962279,0.00205657,79249.0,79248.0,0.63902558]
[1744308963744,9.7e-07,79250.0,79249.0,0.604987]
[1744308963891,0.0023358,79279.0,79249.0,0.604987]
[1744308963892,0.0023358,79279.0,79271.0,0.264913]
[1744308964235,0.0023358,79279.0,79271.0,0.73182058]
[1744308966548,0.0023358,79279.0,79271.0,0.34]
[1744308966765,0.0023358,79279.0,79271.0,0.604913]
[1744308967496,0.0023358,79279.0,79262.0,0.315407]
[1744308967497,0.012615,79269.0,79257.0,0.02227765]
[1744308967662,0.264957,79258.0,79257.0,0.00966065]
[1744308967995,0.252369,79249.0,79248.0,0.0101]
[1744308968199,0.252353,79254.0,79250.0,0.252365]
[1744308968403,0.252331,79261.0,79257.0,0.012617]
[1744308968607,0.7461778,79277.0,79257.0,0.012617]
[1744308968608,0.14103752,79268.0,79266.0,0.252314]
[1744308968838,0.15365252,79268.0,79262.0,0.264941]
[1744308969003,0.14103752,79268.0,79264.0,0.012616]
[1744308969227,0.14103752,79268.0,79265.0,0.264933]
[1744308969425,0.14103752,79268.0,79265.0,0.252318]
[1744308969649,0.14103752,79268.0,79265.0,0.012615]
[1744308969847,0.15365252,79268.0,79255.0,0.012617]
[1744308970084,0.15365252,79268.0,79258.0,0.012617]
[1744308970085,0.252329,79262.0,79258.0,0.012617]
[1744308970227,0.252331,79261.0,79256.0,0.012617]
[1744308970424,0.012615,79265.0,79257.0,0.26496]
[1744308970626,0.40596352,79268.0,79257.0,0.26496]
[1744308970627,0.0003358,79277.0,79271.0,0.264913]
[1744308970837,0.252287,79275.0,79271.0,0.264913]
[1744308971034,0.0003358,79277.0,79271.0,0.264913]
[1744308971304,0.2526168,79277.0,79271.0,0.264913]
[1744308971447,0.0003358,79277.0,79271.0,0.264913]
[1744308971650,0.0129488,79277.0,79271.0,0.264913]
[1744308971856,0.012614,79275.0,79270.0,0.252301]
[1744308972081,0.012614,79275.0,79271.0,0.252299]
[1744308972286,0.252287,79275.0,79271.0,0.252299]
[1744308972632,0.0003358,79277.0,79271.0,0.264913]
[1744308972958,0.0003358,79277.0,79271.0,0.39182058]
[1744308973974,0.012614,79273.0,79267.0,0.252311]
[1744308974188,0.252287,79275.0,79270.0,0.012615]
[1744308974398,0.0003358,79277.0,79271.0,0.39182058]
[1744308976844,0.2652478,79272.0,79269.0,0.252304]
[1744308977216,0.0129498,79272.0,79267.0,0.012615]
[1744308977427,0.2523,79271.0,79268.0,0.264923]
[1744308977630,0.2523,79271.0,79260.0,0.252333]
[1744308977631,0.252299,79271.0,79242.0,0.353345]
[1744308977927,0.0003358,79272.0,79257.0,0.252343]
[1744308977928,0.252335,79260.0,79257.0,0.252343]
[1744308978070,0.012617,79258.0,79252.0,0.252359]
[1744308978277,0.264987,79249.0,79248.0,0.0101]
[1744308980404,0.6269321,79249.0,79248.0,0.0101]
[1744308980949,0.64147295,79249.0,79248.0,0.0101]
[1744308981120,0.64147295,79249.0,79232.0,0.0001]
[1744308981121,0.265041,79233.0,79232.0,0.0001]
[1744308981318,0.54752695,79233.0,79232.0,0.00022663]
[1744308983897,0.64112695,79233.0,79232.0,6.3e-07]
[1744308985072,0.265094,79217.0,79200.0,0.0001677]
[1744308985250,0.54757995,79217.0,79200.0,0.0001677]
[1744308985667,0.74005995,79217.0,79216.0,7e-07]
[1744308985818,0.83415995,79217.0,79216.0,7e-07]
[1744308986013,0.84367843,79217.0,79216.0,7e-07]
[1744308986263,0.265148,79201.0,79200.0,0.0001677]
[1744308986462,0.5330931,79201.0,79200.0,0.00029396]
[1744308986665,0.19387591,79201.0,79200.0,0.00029396]
[1744308986982,0.47356476,79201.0,79200.0,0.00029396]
[1744308987422,0.265177,79192.0,79191.0,0.002]
[1744308987574,0.59914543,79192.0,79191.0,0.002]
[1744308988776,0.58460458,79192.0,79191.0,0.002]
[1744308989461,0.457697,79192.0,79191.0,0.002]
[1744308989872,0.205147,79192.0,79191.0,0.002]
[1744308990212,0.012627,79192.0,79191.0,0.002]
[1744308992632,0.012626,79198.0,79191.0,0.002]
[1744308992837,0.012626,79200.0,79191.0,0.014627]
[1744308993042,0.012626,79199.0,79193.0,0.265173]
[1744308993267,0.252535,79197.0,79192.0,0.265177]
[1744308993471,0.252535,79197.0,79194.0,0.252543]
[1744308993801,0.012626,79198.0,79192.0,0.012627]
[1744308993948,0.012626,79198.0,79193.0,0.252546]
[1744308994316,0.012627,79192.0,79191.0,0.002]
[1744308994466,0.252548,79193.0,79191.0,0.002]
[1744308995075,0.012627,79195.0,79191.0,0.254553]
[1744308995501,0.252511,79205.0,79196.0,0.012626]
[1744308995838,0.0797208,79201.0,79195.0,0.012627]
[1744308995964,0.3322428,79201.0,79196.0,0.252537]
[1744308996166,0.0670948,79201.0,79197.0,0.265159]
[1744308996590,0.252526,79200.0,79196.0,0.252537]
[1744308997013,0.3196188,79201.0,79197.0,0.252534]
[1744308997213,0.0670948,79201.0,79198.0,0.252531]
[1744308997389,0.0670948,79201.0,79199.0,0.265152]
[1744308997813,0.0670948,79201.0,79200.0,0.265151]
[1744308998618,0.00012647,79201.0,79200.0,0.265151]
[1744308999015,0.00012647,79201.0,79200.0,0.252525]
[1744308999220,0.00012647,79201.0,79200.0,0.265151]
[1744309000211,0.00012647,79201.0,79200.0,0.252525]
[1744309000546,0.00012647,79201.0,79197.0,0.592532]
[1744309000750,0.265157,79198.0,79197.0,0.34]
[1744309000995,0.265157,79198.0,79172.0,0.0458]
[1744309000996,0.252548,79193.0,79190.0,0.252555]
[1744309001177,0.25255,79192.0,79189.0,0.34]
[1744309001421,0.265177,79192.0,79174.0,0.01263]
[1744309001626,0.265177,79192.0,79178.0,0.252592]
[1744309001803,0.265177,79192.0,79179.0,0.252592]
[1744309002011,0.39208458,79192.0,79173.0,0.252608]
[1744309002161,0.39208458,79192.0,79168.0,0.2527938]
[1744309002545,0.39208458,79192.0,79174.0,0.252607]
[1744309002748,0.39208458,79192.0,79175.0,0.01263]
[1744309002952,0.39208458,79192.0,79175.0,0.252604]
[1744309003250,0.39208458,79192.0,79173.0,0.26524]
[1744309003542,0.39208458,79192.0,79171.0,0.265246]
[1744309003723,0.40662543,79192.0,79169.0,0.34]
[1744309003928,0.45432543,79192.0,79169.0,0.34]
[1744309004342,0.43978458,79192.0,79174.0,0.01263]
[1744309004546,0.43978458,79192.0,79175.0,0.252602]
[1744309004685,0.31951633,79193.0,79183.0,0.012628]
[1744309004890,0.06696833,79193.0,79189.0,0.252558]
[1744309005133,0.012626,79196.0,79189.0,0.252558]
[1744309005459,0.252534,79197.0,79193.0,0.252545]
[1744309005605,0.01275247,79201.0,79189.0,0.012628]
[1744309005606,0.00012647,79201.0,79198.0,0.25253]
[1744309005808,0.265177,79192.0,79191.0,0.0021]
[1744309006214,0.39208458,79192.0,79191.0,0.0021]
[1744309006506,0.56809376,79192.0,79191.0,0.0021]
[1744309006912,0.55355291,79192.0,79191.0,0.0021]
[1744309007329,0.42664533,79192.0,79191.0,0.0121]
[1744309007540,0.37964533,79192.0,79191.0,0.0121]
[1744309008372,0.52109376,79192.0,79191.0,0.0121]
[1744309008945,0.50655291,79192.0,79191.0,0.0121]
[1744309010528,0.06696833,79192.0,79191.0,0.0121]
[1744309010846,0.33214533,79192.0,79191.0,0.0121]
[1744309012046,0.06696833,79192.0,79191.0,0.0121]
[1744309012273,0.25254,79197.0,79192.0,0.25255]
[1744309012492,0.012626,79197.0,79192.0,0.25255]
[1744309012645,0.012626,79199.0,79194.0,0.012627]
[1744309012851,0.00012647,79201.0,79200.0,0.252525]
[1744309013638,0.00012647,79201.0,79200.0,0.265151]
[1744309014223,0.00012647,79201.0,79200.0,0.275151]
[1744309015048,0.00012647,79201.0,79200.0,0.74205858]
[1744309016437,0.0003356,79232.0,79229.0,0.012621]
[1744309016659,0.00046223,79232.0,79228.0,0.252435]
[1744309016879,0.00046223,79232.0,79227.0,0.012621]
[1744309017516,0.252428,79231.0,79227.0,0.012621]
[1744309017717,0.012621,79230.0,79226.0,0.252442]
[1744309017862,0.252435,79229.0,79226.0,0.252441]
[1744309018065,0.265051,79230.0,79226.0,0.252441]
[1744309018510,0.012623,79218.0,79210.0,0.012624]
[1744309018737,0.012623,79218.0,79208.0,0.012624]
[1744309018738,0.252487,79212.0,79208.0,0.252497]
[1744309018953,0.012624,79214.0,79209.0,0.592496]
[1744309019166,0.012623,79215.0,79209.0,0.60512]
[1744309019356,0.25248,79214.0,79209.0,0.592496]
[1744309019561,0.252473,79217.0,79213.0,0.252483]
[1744309019736,0.252474,79216.0,79212.0,0.252486]
[1744309019981,0.252477,79215.0,79212.0,0.252485]
[1744309020194,0.252471,79217.0,79213.0,0.252482]
[1744309020398,0.553765,79245.0,79218.0,0.012623]
[1744309020598,0.252455,79222.0,79215.0,0.012623]
[1744309020784,0.252471,79217.0,79212.0,0.252486]
[1744309021132,0.252459,79221.0,79216.0,0.252473]
[1744309021343,0.31939833,79230.0,79220.0,0.012623]
[1744309021549,0.06696833,79230.0,79229.0,0.252432]
[1744309021831,0.252371,79249.0,79230.0,0.012621]
[1744309022005,0.252376,79247.0,79230.0,0.01514494]
[1744309022221,0.012618,79251.0,79230.0,0.01514494]
[1744309022431,0.252351,79255.0,79230.0,0.48205252]
[1744309022637,0.252351,79255.0,79230.0,0.47952858]
[1744309022853,0.0494,79258.0,79230.0,0.47952858]
[1744309023062,0.06696833,79267.0,79230.0,0.47952858]
[1744309023063,8.3e-07,79232.0,79231.0,0.605047]
[1744309023199,0.06696833,79267.0,79260.0,0.012616]
[1744309023541,0.252315,79266.0,79261.0,0.264945]
[1744309023748,0.252315,79266.0,79262.0,0.252325]
[1744309023939,0.31940896,79267.0,79263.0,0.252321]
[1744309024130,0.31940896,79267.0,79266.0,0.252314]
[1744309024131,0.00012663,79267.0,79266.0,0.252314]
[1744309024328,0.00012663,79267.0,79266.0,0.264929]
[1744309025300,0.00012663,79267.0,79266.0,0.73183658]
[1744309026824,0.00012663,79267.0,79266.0,0.352615]
[1744309027537,0.00012663,79267.0,79258.0,0.012617]
[1744309027774,0.00012663,79267.0,79262.0,0.592327]
[1744309027951,0.264933,79265.0,79262.0,0.34]
[1744309028165,0.252322,79264.0,79262.0,0.34]
[1744309028693,0.00012663,79267.0,79262.0,0.012616]
[1744309028897,0.00012663,79267.0,79265.0,0.264933]
[1744309029072,0.00012663,79267.0,79266.0,0.01513792]
[1744309029249,0.00012663,79267.0,79266.0,0.012615]
[1744309032959,0.00012663,79267.0,79266.0,0.48204549]
[1744309033139,0.00012663,79267.0,79266.0,0.47952258]
[1744309033937,0.252259,79284.0,79277.0,0.012613]
[1744309034109,9.583e-05,79280.0,79277.0,0.34]
[1744309034445,9.583e-05,79280.0,79276.0,0.252282]
[1744309034614,9.583e-05,79280.0,79277.0,0.34]
[1744309034914,9.583e-05,79280.0,79278.0,0.264888]
[1744309035295,9.583e-05,79280.0,79279.0,0.012613]
[1744309035877,9.583e-05,79280.0,79279.0,0.01513564]
[1744309036305,9.583e-05,79280.0,79279.0,0.012613]
[1744309036505,9.583e-05,79280.0,79279.0,0.264886]
[1744309038725,8.3e-07,79280.0,79279.0,0.83179358]
[1744309038949,0.012609,79307.0,79298.0,0.252212]
[1744309039158,0.00075729,79302.0,79299.0,0.01261]
[1744309039363,0.00075729,79302.0,79298.0,0.01261]
[1744309039516,0.00075729,79302.0,79300.0,0.252203]
[1744309039923,0.00075729,79302.0,79301.0,0.264813]
[1744309041031,0.00075729,79302.0,79301.0,0.39172058]
[1744309042285,0.00075729,79302.0,79301.0,0.73172058]
[1744309042496,0.00075729,79302.0,79301.0,0.83172058]
[1744309043546,0.00075729,79302.0,79301.0,0.79469678]
[1744309044413,0.00075729,79302.0,79301.0,0.79469798]
[1744309045028,0.00075729,79302.0,79301.0,0.83172058]
[1744309045770,0.00075729,79302.0,79301.0,0.79469798]
[1744309046189,0.00075729,79302.0,79301.0,0.83172058]
[1744309048114,0.00075729,79302.0,79301.0,0.80792058]
[1744309048314,0.00075729,79302.0,79301.0,0.83172058]
[1744309048736,0.252057,79347.0,79330.0,0.012605]
[1744309048880,0.002,79339.0,79333.0,0.264706]
[1744309049087,0.00029416,79334.0,79333.0,0.264706]
[1744309049498,0.00029416,79334.0,79333.0,0.02327835]
[1744309049694,0.00029416,79334.0,79333.0,0.28798435]
[1744309050307,0.26499616,79334.0,79333.0,0.02327835]
[1744309050508,0.252104,79333.0,79328.0,0.012605]
[1744309050707,0.00029416,79334.0,79333.0,0.264706]
[1744309050906,0.00029416,79334.0,79333.0,0.28798435]
[1744309051373,0.00029416,79334.0,79333.0,0.27537935]
[1744309051492,0.00029416,79334.0,79333.0,0.28798435]
[1744309051693,0.00029416,79334.0,79333.0,0.75489193]
[1744309052597,0.00029416,79334.0,79333.0,0.62798435]
[1744309053037,0.00029416,79334.0,79333.0,0.604706]
[1744309054024,0.00029416,79334.0,79333.0,0.62799716]
[1744309055557,0.00029416,79334.0,79333.0,0.36329116]
[1744309055893,0.31369616,79334.0,79333.0,0.02329116]
[1744309056453,0.252127,79325.0,79322.0,0.02329116]
[1744309056633,0.264739,79323.0,79322.0,0.02329116]
[1744309057047,0.012607,79318.0,79311.0,0.012608]
[1744309057244,0.012607,79321.0,79315.0,0.252159]
[1744309057449,0.4191,79333.0,79332.0,0.26471]
[1744309057646,0.00029416,79334.0,79333.0,0.264706]
[1744309058087,0.00029416,79334.0,79333.0,0.604706]
[1744309059421,0.00029416,79334.0,79333.0,0.264706]
[1744309060822,0.00029416,79334.0,79332.0,0.592104]
[1744309061024,0.00029416,79334.0,79333.0,0.264706]
[1744309062836,1.6e-07,79334.0,79333.0,0.73161358]
[1744309063212,0.012603,79342.0,79320.0,0.1]
[1744309063409,0.264679,79343.0,79339.0,0.252082]
[1744309063637,0.061103,79345.0,79338.0,0.012604]
[1744309063838,0.264687,79339.0,79333.0,0.252098]
[1744309064044,0.0485,79338.0,79337.0,0.252089]
[1744309064337,0.0485,79338.0,79333.0,0.012605]
[1744309064538,0.0485,79338.0,79335.0,0.252095]
[1744309064843,0.252068,79344.0,79338.0,0.264687]
[1744309064998,0.264666,79345.0,79340.0,0.252077]
[1744309065199,0.298744,79351.0,79345.0,0.012603]
[1744309065445,0.0467,79351.0,79346.0,0.27542622]
[1744309065623,0.0467,79351.0,79349.0,0.25205]
[1744309066044,0.0121422,79357.0,79351.0,0.012602]
[1744309066242,0.012601,79353.0,79352.0,0.02336622]
[1744309066387,0.264639,79353.0,79352.0,0.02336622]
[1744309066785,0.39154658,79353.0,79352.0,0.02336622]
[1744309067246,0.39154658,79353.0,79333.0,0.252098]
[1744309067247,0.252093,79336.0,79334.0,0.252098]
[1744309067443,0.252089,79337.0,79334.0,0.252098]
[1744309067647,0.252096,79335.0,79332.0,0.26471]
[1744309067890,0.252086,79338.0,79334.0,0.252098]
[1744309068053,0.264696,79339.0,79335.0,0.252092]
[1744309068258,0.25209,79337.0,79334.0,0.264702]
[1744309068459,0.252086,79338.0,79334.0,0.264702]
[1744309068780,0.012604,79335.0,79329.0,0.34]
[1744309069064,0.252101,79334.0,79331.0,0.252107]
[1744309069279,0.252101,79334.0,79329.0,0.352605]
[1744309069280,0.252107,79332.0,79329.0,0.012605]
[1744309069580,0.252099,79334.0,79331.0,0.252106]
[1744309069778,0.252099,79334.0,79329.0,0.012605]
[1744309069779,0.264703,79334.0,79329.0,0.012605]
[1744309069955,0.252106,79332.0,79329.0,0.252114]
[1744309070141,0.252102,79333.0,79330.0,0.252111]
[1744309070607,0.264703,79334.0,79331.0,0.252107]
[1744309070784,0.252105,79332.0,79328.0,0.264722]
[1744309070944,0.012605,79328.0,79324.0,0.34]
[1744309071294,0.26472,79329.0,79326.0,0.00012656]
[1744309071580,0.012605,79331.0,79326.0,0.00012656]
[1744309071826,0.264726,79327.0,79326.0,0.00012656]
[1744309073178,0.264713,79332.0,79326.0,0.00012656]
[1744309073179,0.252054,79348.0,79339.0,0.012604]
[1744309073386,0.045,79340.0,79339.0,0.252082]
[1744309073585,0.045,79340.0,79338.0,0.264689]
[1744309073826,0.045,79340.0,79336.0,0.012604]
[1744309074003,0.045,79340.0,79337.0,0.012604]
[1744309074203,0.8441616,79366.0,79349.0,0.012602]
[1744309074204,0.045,79353.0,79349.0,0.012602]
[1744309074445,0.045,79353.0,79352.0,0.252041]
[1744309074644,0.0126,79364.0,79352.0,0.252041]
[1744309074645,0.0126,79362.0,79355.0,0.252031]
[1744309074858,0.252019,79359.0,79356.0,0.252028]
[1744309075026,0.252023,79358.0,79355.0,0.252031]
[1744309075222,0.252019,79359.0,79355.0,0.252031]
[1744309075223,0.264619,79360.0,79356.0,0.252028]
[1744309075426,0.25202,79359.0,79355.0,0.264632]
[1744309075635,0.2641672,79357.0,79354.0,0.252035]
[1744309075837,0.0121422,79357.0,79355.0,0.252031]
[1744309076034,0.0121422,79357.0,79356.0,0.252028]
[1744309076199,0.0121422,79357.0,79355.0,0.252031]
[1744309076399,0.252033,79355.0,79351.0,0.252044]
[1744309076792,0.252033,79355.0,79337.0,0.01257804]
[1744309076793,0.252076,79341.0,79338.0,0.252085]
[1744309076998,0.252089,79337.0,79332.0,0.252099]
[1744309077144,0.252078,79341.0,79335.0,0.012604]
[1744309077352,0.0121422,79357.0,79347.0,0.012602]
[1744309077533,0.4312422,79357.0,79349.0,0.012602]
[1744309077733,0.252038,79353.0,79350.0,0.264649]
[1744309077942,0.252066,79345.0,79340.0,0.012603]
[1744309078152,0.252071,79343.0,79340.0,0.252077]
[1744309078351,0.264659,79347.0,79340.0,0.012603]
[1744309078659,0.252062,79346.0,79343.0,0.252067]
[1744309078980,0.012602,79347.0,79341.0,0.012603]
[1744309079244,0.012602,79350.0,79345.0,0.252063]
[1744309079416,0.252039,79353.0,79349.0,0.264651]
[1744309079581,0.012601,79356.0,79349.0,0.012602]
[1744309079783,0.012602,79349.0,79343.0,0.252069]
[1744309080101,0.264649,79351.0,79347.0,0.252055]
[1744309080520,0.252051,79349.0,79346.0,0.252057]
[1744309080701,0.252049,79350.0,79347.0,0.252057]
[1744309080884,0.252052,79349.0,79345.0,0.264663]
[1744309081079,0.012602,79347.0,79340.0,0.252079]
[1744309081328,0.012602,79347.0,79341.0,0.012603]
[1744309081538,0.012602,79347.0,79343.0,0.252069]
[1744309081539,0.25206,79346.0,79343.0,0.252069]
[1744309081767,0.012603,79341.0,79336.0,0.25209]
[1744309081881,0.012603,79343.0,79338.0,0.012604]
[1744309082086,0.252076,79343.0,79340.0,0.252077]
[1744309082338,0.26467,79344.0,79341.0,0.252075]
[1744309082750,0.012603,79343.0,79338.0,0.264688]
[1744309083043,0.252077,79341.0,79337.0,0.252086]
[1744309083279,0.012603,79340.0,79331.0,0.012605]
[1744309083494,0.012602,79351.0,79345.0,0.012603]
[1744309083711,0.012602,79351.0,79344.0,0.012603]
[1744309083873,1.61443085,79372.0,79351.0,0.012602]
[1744309083874,0.012601,79358.0,79351.0,0.012602]
[1744309084074,0.252036,79354.0,79351.0,0.252044]
[1744309084276,0.4438432,79357.0,79356.0,0.264629]
[1744309084277,0.0121422,79357.0,79356.0,0.264629]
[1744309084496,0.0121422,79357.0,79356.0,0.252028]
[1744309085039,0.0121422,79357.0,79356.0,0.264629]
[1744309086799,0.0121422,79357.0,79356.0,0.73153658]
[1744309087009,0.0121422,79357.0,79356.0,2.16687142]
[1744309087556,0.0121422,79357.0,79356.0,1.93996384]
[1744309087758,0.2767682,79357.0,79356.0,0.03853484]
[1744309087989,0.012601,79354.0,79346.0,0.012603]
[1744309088188,0.0121422,79357.0,79351.0,0.012602]
[1744309088500,0.0121422,79357.0,79356.0,0.252028]
[1744309088703,0.0121422,79357.0,79356.0,0.264629]
[1744309089534,2e-07,79357.0,79356.0,0.77007172]
[1744309089708,2e-07,79357.0,79356.0,0.81587172]
[1744309090036,8e-07,79369.0,79368.0,0.604589]
[1744309090178,8e-07,79369.0,79368.0,0.96091172]
[1744309090378,0.00012729,79369.0,79368.0,0.96091172]
[1744309090587,0.00012729,79369.0,79368.0,0.98427507]
[1744309090825,0.2521146,79382.0,79375.0,0.264566]
[1744309091023,0.2521146,79382.0,79368.0,0.7054317]
[1744309091024,0.012598,79373.0,79368.0,0.03504512]
[1744309091226,0.012598,79375.0,79368.0,0.01168177]
[1744309091429,0.0001676,79376.0,79374.0,0.25197]
[1744309091581,0.0001676,79376.0,79375.0,0.012598]
[1744309092243,0.0001676,79376.0,79374.0,0.25197]
[1744309092443,0.0001676,79376.0,79375.0,0.012598]
[1744309093631,0.0001676,79376.0,79375.0,0.035933]
[1744309094459,0.0001676,79376.0,79375.0,0.012598]
[1744309094678,0.0001676,79376.0,79371.0,0.251971]
[1744309094679,0.0127656,79376.0,79371.0,0.251971]
[1744309094885,0.251968,79375.0,79372.0,0.251977]
[1744309095042,0.0001676,79376.0,79373.0,0.251972]
[1744309095243,0.0001676,79376.0,79375.0,0.012598]
[1744309095445,0.0001676,79376.0,79374.0,0.264569]
[1744309095863,0.0127656,79376.0,79367.0,0.604591]
[1744309096071,0.012599,79370.0,79359.0,0.0126]
[1744309096324,0.012598,79374.0,79368.0,0.251989]
[1744309096470,0.012598,79374.0,79367.0,0.012599]
[1744309096664,0.012598,79374.0,79371.0,0.251979]
[1744309096870,0.264577,79372.0,79367.0,0.264591]
[1744309097068,0.251983,79371.0,79367.0,0.264591]
[1744309097269,0.251984,79370.0,79367.0,0.251992]
[1744309097454,0.0493676,79376.0,79375.0,0.251968]
[1744309097658,0.0001676,79376.0,79375.0,0.264566]
[1744309098078,0.0001676,79376.0,79375.0,0.012598]
[1744309098279,0.0001676,79376.0,79375.0,0.264566]
[1744309098485,0.0001676,79376.0,79375.0,0.251968]
[1744309098704,0.0001676,79376.0,79375.0,0.264566]
[1744309099071,0.0001676,79376.0,79371.0,0.591978]
[1744309099272,0.0001676,79376.0,79375.0,0.604566]
[1744309099482,0.0001676,79376.0,79375.0,0.73147358]
[1744309100521,0.0001676,79376.0,79375.0,0.604566]
[1744309102673,0.0001676,79376.0,79375.0,0.73147358]
[1744309104051,0.0001676,79376.0,79375.0,0.93147358]
[1744309104258,0.0001676,79376.0,79375.0,0.96984333]
[1744309104453,0.0001676,79376.0,79375.0,0.97946945]
[1744309104859,3e-07,79383.0,79382.0,0.604543]
[1744309105043,3e-07,79383.0,79382.0,1.06066033]
[1744309105244,3e-07,79383.0,79382.0,1.04346033]
[1744309105499,3e-07,79383.0,79382.0,1.06066033]
[1744309105912,3e-07,79383.0,79382.0,1.12229058]
[1744309107130,3e-07,79383.0,79382.0,0.98539458]
[1744309107329,3e-07,79383.0,79382.0,0.858487]
[1744309107531,3e-07,79383.0,79376.0,0.012598]
[1744309107532,3e-07,79383.0,79366.0,0.1908]
[1744309107730,0.012598,79376.0,79372.0,0.251975]